[Event "IIFL Wealth  4th Mumbai Junior U-13"]
[Site "Mumbai"]
[Date "2019.01.02"]
[Round "4"]
[White "Bhagyashree G Patil"]
[Black "Shah Hiya"]
[Result "1-0"]
[ECO "C45"]
[WhiteElo "1215"]
[BlackElo "1039"]
[Annotator "NA RC"]
[PlyCount "121"]
[EventDate "2018.12.30"]
[EventType "swiss"]
[EventCountry "IND"]
[SourceTitle "playchess.com"]
[Source "ChessBase"]
[SourceQuality "1"]
[TimeControl "40/5400+30:1800+30"]

1. e4 {[%emt 0:02:25]} e5 {[%emt 0:00:00]} 2. Nf3 {[%emt 0:00:11]} Nc6 {[%emt 0:00:00]} 3. d4 {[%emt 0:00:09]} exd4 {[%emt 0:00:00]} 4. Nxd4 {[%emt 0:00:04]} Bc5 {[%emt 0:00:00]} 5. Nxc6 {[%emt 0:00:13]} Qf6 {[%emt 0:00:03]} 6. Qd2 {[%emt 0:01:32]} dxc6 {[%emt 0:00:10]} 7. Bd3 {[%emt 0:01:11]} Ne7 {[%emt 0:01:06]} 8. O-O {[%emt 0:03:05]} Ng6 {[%emt 0:01:39]} 9. a3 {[%emt 0:28:02]} O-O {[%emt 0:00:59]} 10. Nc3 {[%emt 0:18:40]} Ne5 {[%emt 0:01:02]} 11. h3 {[%emt 0:11:51]} Nxd3 {[%emt 0:00:27]} 12. Qxd3 {[%emt 0:00:27]} Be6 {[%emt 0:02:02]} 13. Be3 {[%emt 0:10:40]} Rad8 {[%emt 0:02:40]} 14. Qe2 {[%emt 0:01:06]} Bd6 {[%emt 0:01:07]} 15. f4 {[%emt 0:01:37]} Qe7 {[%emt 0:03:22]} 16. b4 {[%emt 0:06:39]} Qe8 {[%emt 0:04:14]} 17. e5 {[%emt 0:00:42]} Be7 {[%emt 0:00:30]} 18. f5 {[%emt 0:00:15]} Bd7 {[%emt 0:03:32]} 19. f6 {[%emt 0:02:36]} gxf6 {[%emt 0:01:36]} 20. Bh6 {[%emt 0:00:35]} Kh8 {[%emt 0:02:25]} 21. Bxf8 {[%emt 0:00:46]} Qxf8 {[%emt 0:00:16]} 22. exf6 {[%emt 0:01:39]} Bd6 {[%emt 0:00:33]} 23. Kh1 {[%emt 0:01:44]} Re8 {[%emt 0:06:56]} 24. Qd3 {[%emt 0:01:30]} Qg8 {[%emt 0:09:32]} 25. Ne4 {[%emt 0:02:54]} Be5 {[%emt 0:01:14]} 26. Rae1 {[%emt 0:00:43]} Be6 {[%emt 0:01:25]} 27. Nc5 {[%emt 0:00:54]} Bd5 {[%emt 0:03:14]} 28. Ne4 {[%emt 0:00:26]} Qg6 {[%emt 0:03:00]} 29. c4 {[%emt 0:00:54]} Rg8 {[%emt 0:01:52]} 30. Rf2 {[%emt 0:00:28]} Bg3 {[%emt 0:00:55]} 31. Qxg3 {[%emt 0:00:33]} Bxe4 {[%emt 0:01:22]} 32. Qxg6 {[%emt 0:00:10]} Bxg6 {[%emt 0:00:34]} 33. Re7 {[%emt 0:00:06]} Rf8 {[%emt 0:01:32]} 34. Rxc7 {[%emt 0:00:15]} Bd3 {[%emt 0:02:21]} 35. c5 {[%emt 0:00:16]} Ba6 {[%emt 0:01:35]} 36. a4 {[%emt 0:00:21]} h6 {[%emt 0:01:38]} 37. Rb2 {[%emt 0:00:09]} Bc4 {[%emt 0:00:47]} 38. Rxb7 {[%emt 0:00:14]} a6 {[%emt 0:01:26]} 39. Rd2 {[%emt 0:01:27]} Bd5 {[%emt 0:00:25]} 40. Ra7 {[%emt 0:00:00]} Bc4 {[%emt 0:00:00]} 41. Rd4 {[%emt 0:00:57]} Bd5 {[%emt 0:01:26]} 42. Rxa6 {[%emt 0:00:07]} Rg8 {[%emt 0:00:17]} 43. Rd2 {[%emt 0:00:14]} Rg6 {[%emt 0:01:39]} 44. Rb6 {[%emt 0:01:38]} Rg5 {[%emt 0:03:16]} 45. a5 {[%emt 0:00:24]} Rg8 {[%emt 0:00:27]} 46. a6 {[%emt 0:00:58]} Ra8 {[%emt 0:00:11]} 47. Rd1 {[%emt 0:02:19]} Bc4 {[%emt 0:02:11]} 48. Ra1 {[%emt 0:00:16]} Bb5 {[%emt 0:00:21]} 49. a7 {[%emt 0:00:08]} Kh7 {[%emt 0:00:10]} 50. Rb8 {[%emt 0:00:05]} Rxa7 {[%emt 0:00:33]} 51. Rxa7 {[%emt 0:00:07]} Kg6 {[%emt 0:00:24]} 52. Rxb5 {[%emt 0:00:10]} cxb5 {[%emt 0:00:09]} 53. c6 {[%emt 0:00:12]} Kxf6 {[%emt 0:00:15]} 54. c7 {[%emt 0:00:02]} Kg7 {[%emt 0:00:19]} 55. c8=Q {[%emt 0:00:09]} Kf6 {[%emt 0:00:23]} 56. Qc5 {[%emt 0:00:10]} Kg6 {[%emt 0:00:14]} 57. Ra6+ {[%emt 0:00:06]} Kg7 {[%emt 0:00:30]} 58. Qe5+ {[%emt 0:00:05]} Kh7 {[%emt 0:00:16]} 59. Qf6 {[%emt 0:00:13]} Kg8 {[%emt 0:00:14]} 60. Ra8+ {[%emt 0:00:02]} Kh7 {[%emt 0:00:11]} 61. Rh8# {[%emt 0:00:03]} 1-0

[Event "IIFL Wealth  4th Mumbai Junior U-13"]
[Site "Mumbai"]
[Date "2019.01.02"]
[Round "4"]
[White "Manusha, D M Nipun"]
[Black "Saukhya Savant"]
[Result "0-1"]
[ECO "C10"]
[WhiteElo "1214"]
[BlackElo "1122"]
[Annotator "NA"]
[PlyCount "118"]
[EventDate "2018.12.30"]
[EventType "swiss"]
[EventCountry "IND"]
[SourceTitle "playchess.com"]
[Source "ChessBase"]
[SourceQuality "1"]
[TimeControl "40/5400+30:1800+30"]

1. e4 e6 2. d4 d5 3. Nc3 dxe4 4. Nxe4 Nd7 5. Nf3 Ngf6 6. Ng3 b6 7. Bd3 Bb7 8. O-O c5 9. c3 h6 10. Re1 Bd6 11. Ne4 Bc7 12. Nxf6+ Qxf6 13. Be4 Rb8 14. d5 e5 15. c4 O-O 16. b3 Qd6 17. Bb2 f5 18. Bc2 e4 19. Nd2 Qxh2+ 20. Kf1 Qh1+ 21. Ke2 Qh5+ 22. Kf1 Qxd1 23. Raxd1 Nf6 24. f3 exf3 25. gxf3 g6 26. Kf2 Rbe8 27. Bxf6 Rxe1 28. Rxe1 Rxf6 29. Re7 Rf7 30. Re6 Kg7 31. d6 Rd7 32. Re7+ Rxe7 33. dxe7 Kf7 34. e8=Q+ Kxe8 35. Kg2 Kf7 36. Kh3 Bf4 37. Nb1 Bxf3 38. Nc3 Kf6 39. Bd1 Bxd1 40. Nxd1 Kg5 41. Nf2 h5 42. Kg2 Be3 43. a3 Bxf2 44. Kxf2 h4 45. b4 Kf4 46. bxc5 bxc5 47. a4 h3 48. a5 g5 49. a6 g4 50. Kg1 Ke4 51. Kf2 h2 52. Kg2 g3 53. Kh1 Kd4 54. Kg2 Kxc4 55. Kh1 Kb4 56. Kg2 c4 57. Kh1 c3 58. Kg2 c2 59. Kh1 c1=Q+ 0-1

[Event "IIFL Wealth  4th Mumbai Junior U-13"]
[Site "Mumbai"]
[Date "2019.01.02"]
[Round "4"]
[White "Vasudeva Varun"]
[Black "Kapadia Prisha"]
[Result "1/2-1/2"]
[ECO "B43"]
[WhiteElo "1209"]
[BlackElo "1037"]
[Annotator "NA"]
[PlyCount "65"]
[EventDate "2018.12.30"]
[EventType "swiss"]
[EventCountry "IND"]
[SourceTitle "playchess.com"]
[Source "ChessBase"]
[SourceQuality "1"]
[TimeControl "40/5400+30:1800+30"]

1. e4 {[%emt 0:15:26]} c5 {[%emt 0:00:00]} 2. Nf3 {[%emt 0:00:06]} e6 3. d4 {[%emt 0:00:05]} cxd4 {[%emt 0:00:00]} 4. Nxd4 {[%emt 0:00:05]} a6 {[%emt 0:00:11]} 5. Nc3 {[%emt 0:01:22]} Qc7 {[%emt 0:01:53]} 6. Be3 {[%emt 0:01:06]} Nf6 {[%emt 0:00:43]} 7. f3 {[%emt 0:03:24]} Be7 {[%emt 0:00:25]} 8. Bd3 {[%emt 0:01:32]} O-O {[%emt 0:00:32]} 9. Qd2 {[%emt 0:01:54]} Nc6 {[%emt 0:01:18]} 10. Nb3 {[%emt 0:02:02]} b5 {[%emt 0:01:49]} 11. Qf2 {[%emt 0:02:11]} d6 {[%emt 0:16:14]} 12. g4 {[%emt 0:01:48]} Bb7 {[%emt 0:07:54]} 13. h4 {[%emt 0:01:30]} Ne5 {[%emt 0:12:08]} 14. h5 {[%emt 0:01:20]} Rfe8 {[%emt 0:16:11]} 15. g5 {[%emt 0:00:43]} Nfd7 {[%emt 0:05:01]} 16. Qg3 {[%emt 0:01:20]} d5 {[%emt 0:08:03]} 17. Qg2 {[%emt 0:08:00]} Nxd3+ {[%emt 0:04:44]} 18. cxd3 {[%emt 0:00:55]} Ne5 {[%emt 0:00:48]} 19. Rd1 {[%emt 0:03:20]} Bb4 {[%emt 0:03:39]} 20. Bd4 {[%emt 0:03:22]} Rad8 {[%emt 0:03:20]} 21. a3 {[%emt 0:01:29]} Bxc3+ {[%emt 0:01:26]} 22. bxc3 {[%emt 0:01:08]} dxe4 {[%emt 0:01:41]} 23. fxe4 {[%emt 0:01:31]} Nc6 {[%emt 0:02:22]} 24. g6 {[%emt 0:00:46]} Nxd4 {[%emt 0:00:39]} 25. gxh7+ {[%emt 0:01:06]} Kxh7 {[%emt 0:00:42]} 26. cxd4 {[%emt 0:00:28]} Qc3+ {[%emt 0:01:04]} 27. Nd2 {[%emt 0:00:31]} Qxd4 {[%emt 0:01:12]} 28. Nb3 {[%emt 0:00:40]} Qc3+ {[%emt 0:00:11]} 29. Nd2 {[%emt 0:00:06]} Qd4 {[%emt 0:00:09]} 30. Nb3 {[%emt 0:00:15]} Qc3+ {[%emt 0:00:05]} 31. Nd2 {[%emt 0:00:04]} Qd4 {[%emt 0:00:05]} 32. Nb3 {[%emt 0:00:10]} Qc3+ {[%emt 0:00:04]} 33. Nd2 1/2-1/2

[Event "IIFL Wealth  4th Mumbai Junior U-13"]
[Site "Mumbai"]
[Date "2019.01.02"]
[Round "4"]
[White "Medhansh Rathi"]
[Black "Vihaan Dumir"]
[Result "1-0"]
[ECO "C10"]
[WhiteElo "1194"]
[BlackElo "1013"]
[Annotator "NA RC"]
[PlyCount "95"]
[EventDate "2018.12.30"]
[EventType "swiss"]
[EventCountry "IND"]
[SourceTitle "playchess.com"]
[Source "ChessBase"]
[SourceQuality "1"]
[TimeControl "40/5400+30:1800+30"]

1. e4 e6 2. d4 d5 3. Nc3 dxe4 4. Nxe4 Bd7 5. Nf3 Bc6 6. Bd3 Nd7 7. O-O Ngf6 8. Nxf6+ Nxf6 9. c3 Bxf3 10. Qxf3 c6 11. Bg5 Be7 12. Rad1 O-O 13. Bc2 Qd5 14. Qxd5 cxd5 15. h3 h6 16. Bf4 Rfd8 17. Rfe1 Bd6 18. Bh2 Rac8 19. Bd3 Bxh2+ 20. Kxh2 Nd7 21. Kg3 Kf8 22. Re3 Ke7 23. f4 Kf6 24. Rf1 a6 25. f5 e5 26. dxe5+ Nxe5 27. Kf4 Nd7 28. Kg3 Ne5 29. Kf4 Re8 30. g4 g6 31. fxg6 Nxg6+ 32. Bxg6 fxg6 33. Kg3+ Kg7 34. Rfe1 Kf7 35. Rxe8 Rxe8 36. Rxe8 Kxe8 37. Kf4 h5 38. gxh5 gxh5 39. Kg5 b6 40. Kxh5 b5 41. b4 Ke7 42. Kg5 Kf7 43. h4 Kg7 44. h5 Kg8 45. h6 Kf8 46. h7 Kg7 47. h8=Q+ Kxh8 48. Kf5 1-0

[Event "IIFL Wealth  4th Mumbai Junior U-13"]
[Site "Mumbai"]
[Date "2019.01.02"]
[Round "4"]
[White "Gosrani, Reeyan"]
[Black "Vittanala Shanmuk Saish"]
[Result "0-1"]
[ECO "B90"]
[WhiteElo "1190"]
[BlackElo "1005"]
[Annotator "NA"]
[PlyCount "51"]
[EventDate "2018.12.30"]
[EventType "swiss"]
[EventCountry "IND"]
[SourceTitle "playchess.com"]
[Source "ChessBase"]
[SourceQuality "1"]
[TimeControl "40/5400+30:1800+30"]

1. e4 {[%emt 0:00:00]} c5 {[%emt 0:00:16]} 2. Nf3 {[%emt 0:00:00]} d6 {[%emt 0:00:15]} 3. d4 {[%emt 0:00:01]} cxd4 {[%emt 0:00:30]} 4. Nxd4 {[%emt 0:00:08]} Nf6 {[%emt 0:00:20]} 5. Nc3 {[%emt 0:00:34]} a6 {[%emt 0:00:22]} 6. Be3 {[%emt 0:03:15]} e6 {[%emt 0:00:34]} 7. Bd3 {[%emt 0:00:55]} Be7 {[%emt 0:00:56]} 8. O-O {[%emt 0:07:46]} Nbd7 {[%emt 0:00:52]} 9. Qe2 {[%emt 0:01:08]} Qc7 {[%emt 0:02:59]} 10. Rad1 {[%emt 0:02:22]} O-O {[%emt 0:00:37]} 11. f4 {[%emt 0:01:39]} b5 {[%emt 0:06:36]} 12. Qf3 {[%emt 0:03:18]} Bb7 {[%emt 0:05:45]} 13. Qg3 {[%emt 0:06:37]} b4 {[%emt 0:06:20]} 14. Nce2 Nxe4 {[%emt 0:03:00]} 15. Bxe4 {[%emt 0:08:12]} Bxe4 {[%emt 0:05:36]} 16. f5 {[%emt 0:06:52]} e5 {[%emt 0:00:30]} 17. f6 {[%emt 0:08:27]} Bxf6 {[%emt 0:01:41]} 18. Rxf6 {[%emt 0:01:19]} Nxf6 {[%emt 0:02:27]} 19. Bh6 {[%emt 0:00:11]} Nh5 {[%emt 0:00:41]} 20. Qg4 {[%emt 0:02:22]} Bg6 {[%emt 0:01:14]} 21. Be3 {[%emt 0:03:06]} exd4 {[%emt 0:00:34]} 22. Nxd4 {[%emt 0:03:47]} Rfe8 {[%emt 0:04:14]} 23. Bf2 {[%emt 0:00:22]} Nf6 {[%emt 0:02:26]} 24. Qf4 {[%emt 0:00:40]} Re4 {[%emt 0:00:42]} 25. Qd2 {[%emt 0:00:09]} Nd5 {[%emt 0:03:55]} 26. Nf3 {[%emt 0:01:00]} 0-1

[Event "IIFL Wealth  4th Mumbai Junior U-13"]
[Site "Mumbai"]
[Date "2019.01.02"]
[Round "4"]
[White "Aarna Chugh"]
[Black "Sawalakhe Jay"]
[Result "1-0"]
[ECO "A45"]
[WhiteElo "1164"]
[BlackElo "1273"]
[Annotator "NA"]
[PlyCount "105"]
[EventDate "2018.12.30"]
[EventType "swiss"]
[EventCountry "IND"]
[SourceTitle "playchess.com"]
[Source "ChessBase"]
[SourceQuality "1"]
[TimeControl "40/5400+30:1800+30"]

1. d4 {[%emt 0:00:00]} Nf6 {[%emt 0:00:31]} 2. Bf4 {[%emt 0:00:00]} e6 {[%emt 0:00:25]} 3. e3 {[%emt 0:00:14]} b6 {[%emt 0:00:09]} 4. Nf3 {[%emt 0:00:29]} Be7 {[%emt 0:00:23]} 5. Bd3 {[%emt 0:00:20]} Bb7 {[%emt 0:00:07]} 6. Nbd2 {[%emt 0:00:16]} d6 {[%emt 0:00:12]} 7. c3 {[%emt 0:01:14]} Nbd7 {[%emt 0:00:06]} 8. h3 {[%emt 0:00:25]} O-O {[%emt 0:04:44]} 9. O-O {[%emt 0:01:08]} c5 {[%emt 0:00:32]} 10. Nc4 {[%emt 0:07:45]} Qc7 {[%emt 0:01:35]} 11. Qe2 {[%emt 0:06:01]} Nd5 {[%emt 0:04:11]} 12. Bh2 {[%emt 0:02:26]} b5 {[%emt 0:08:31]} 13. Ncd2 {[%emt 0:03:01]} c4 {[%emt 0:00:36]} 14. Bc2 {[%emt 0:04:25]} g6 {[%emt 0:05:16]} 15. e4 {[%emt 0:09:00]} N5b6 {[%emt 0:03:36]} 16. Rfe1 {[%emt 0:06:16]} Rfe8 {[%emt 0:03:05]} 17. Rad1 {[%emt 0:03:03]} Rad8 {[%emt 0:02:41]} 18. Qe3 {[%emt 0:05:09]} f6 {[%emt 0:09:57]} 19. e5 {[%emt 0:07:25]} dxe5 {[%emt 0:02:30]} 20. dxe5 {[%emt 0:02:08]} f5 {[%emt 0:00:42]} 21. Nd4 {[%emt 0:07:47]} Bf8 {[%emt 0:15:03]} 22. N2f3 {[%emt 0:05:15]} a6 {[%emt 0:09:14]} 23. Bf4 {[%emt 0:06:44]} Nd5 {[%emt 0:01:18]} 24. Qd2 {[%emt 0:00:43]} Nc5 {[%emt 0:02:15]} 25. Bg5 {[%emt 0:04:09]} Rd7 {[%emt 0:02:30]} 26. Qe2 {[%emt 0:02:16]} h6 {[%emt 0:03:04]} 27. Bd2 {[%emt 0:01:49]} Rf7 {[%emt 0:01:45]} 28. Nh4 {[%emt 0:01:41]} g5 {[%emt 0:00:59]} 29. Ng6 {[%emt 0:00:33]} Bg7 {[%emt 0:01:37]} 30. Qh5 {[%emt 0:01:34]} Nb6 {[%emt 0:04:17]} 31. h4 {[%emt 0:02:52]} g4 {[%emt 0:04:13]} 32. Bxh6 {[%emt 0:00:43]} Bxh6 {[%emt 0:00:16]} 33. Qxh6 {[%emt 0:00:11]} Rh7 {[%emt 0:00:23]} 34. Qg5 {[%emt 0:00:38]} Rg7 {[%emt 0:00:12]} 35. h5 {[%emt 0:00:57]} Qf7 {[%emt 0:01:54]} 36. Qh4 {[%emt 0:02:13]} Nd5 {[%emt 0:00:27]} 37. Ne2 {[%emt 0:01:16]} a5 {[%emt 0:02:31]} 38. Nef4 {[%emt 0:00:25]} b4 {[%emt 0:00:43]} 39. Nxd5 {[%emt 0:00:53]} Bxd5 {[%emt 0:00:06]} 40. Nf4 {[%emt 0:00:00]} b3 {[%emt 0:00:00]} 41. axb3 {[%emt 0:00:26]} cxb3 {[%emt 0:00:24]} 42. Bb1 {[%emt 0:00:58]} Be4 {[%emt 0:00:39]} 43. h6 {[%emt 0:02:18]} Rh7 {[%emt 0:00:05]} 44. Qg5+ {[%emt 0:00:31]} Kh8 {[%emt 0:00:59]} 45. Ng6+ {[%emt 0:02:44]} Kg8 {[%emt 0:00:46]} 46. Rd8 {[%emt 0:00:39]} Nd7 {[%emt 0:04:04]} 47. Rxe8+ {[%emt 0:00:58]} Qxe8 {[%emt 0:00:42]} 48. Ne7+ {[%emt 0:00:09]} Kh8 {[%emt 0:00:49]} 49. Ng6+ {[%emt 0:01:56]} Kg8 {[%emt 0:00:02]} 50. Bxe4 {[%emt 0:00:31]} fxe4 {[%emt 0:00:27]} 51. Rxe4 {[%emt 0:01:44]} Nf8 {[%emt 0:02:43]} 52. Ne7+ {[%emt 0:00:19]} Kh8 53. Qf6+ {Kg8 Qg5+ Nd7 Ng6} 1-0

[Event "IIFL Wealth  4th Mumbai Junior U-13"]
[Site "Mumbai"]
[Date "2019.01.02"]
[Round "4"]
[White "Dabhade Arnav"]
[Black "Tambe Shardul"]
[Result "1/2-1/2"]
[ECO "B13"]
[WhiteElo "1064"]
[BlackElo "1250"]
[Annotator "NA"]
[PlyCount "81"]
[EventDate "2018.12.30"]
[EventType "swiss"]
[EventCountry "IND"]
[SourceTitle "playchess.com"]
[Source "ChessBase"]
[SourceQuality "1"]
[TimeControl "40/5400+30:1800+30"]

1. e4 {[%emt 0:00:00]} c6 {[%emt 0:00:00]} 2. d4 {[%emt 0:00:00]} d5 {[%emt 0:00:00]} 3. exd5 {[%emt 0:00:00]} cxd5 {[%emt 0:00:00]} 4. Bd3 {[%emt 0:00:00]} Nc6 {[%emt 0:00:00]} 5. c3 {[%emt 0:01:00]} Nf6 {[%emt 0:00:00]} 6. Nf3 {[%emt 0:00:34]} Bg4 {[%emt 0:00:11]} 7. Bf4 {[%emt 0:01:51]} e6 {[%emt 0:00:42]} 8. Nbd2 {[%emt 0:00:35]} Bd6 {[%emt 0:01:18]} 9. Bxd6 {[%emt 0:02:45]} Qxd6 {[%emt 0:00:08]} 10. Qc2 {[%emt 0:01:27]} O-O {[%emt 0:04:20]} 11. O-O {[%emt 0:02:05]} Bxf3 {[%emt 0:03:15]} 12. Nxf3 {[%emt 0:00:16]} Rfe8 {[%emt 0:06:35]} 13. Rfe1 {[%emt 0:01:03]} Rac8 {[%emt 0:02:28]} 14. a3 {[%emt 0:04:14]} h6 {[%emt 0:06:23]} 15. h3 {[%emt 0:00:42]} a6 {[%emt 0:03:13]} 16. Rad1 {[%emt 0:01:48]} b5 {[%emt 0:00:38]} 17. Qb1 {[%emt 0:08:12]} Na5 {[%emt 0:00:27]} 18. Ne5 {[%emt 0:02:27]} Nc4 {[%emt 0:00:24]} 19. Nxc4 {[%emt 0:01:45]} bxc4 {[%emt 0:00:24]} 20. Bc2 {[%emt 0:00:26]} Rb8 {[%emt 0:00:34]} 21. Re5 {[%emt 0:05:40]} Rb7 {[%emt 0:02:16]} 22. Qa2 {[%emt 0:01:47]} Reb8 {[%emt 0:01:33]} 23. Rb1 {[%emt 0:00:23]} Qc7 {[%emt 0:03:11]} 24. Re3 {[%emt 0:01:31]} Rb6 {[%emt 0:03:40]} 25. b4 {[%emt 0:03:53]} cxb3 {[%emt 0:00:39]} 26. Rxb3 {[%emt 0:00:26]} Rxb3 {[%emt 0:03:20]} 27. Bxb3 {[%emt 0:00:09]} Qb6 {[%emt 0:00:25]} 28. Bc2 {[%emt 0:02:00]} Qb2 {[%emt 0:00:50]} 29. Qxb2 {[%emt 0:00:30]} Rxb2 {[%emt 0:00:01]} 30. Re2 {[%emt 0:00:53]} Kf8 {[%emt 0:03:52]} 31. Kf1 {[%emt 0:00:44]} Ke7 {[%emt 0:01:51]} 32. Ke1 {[%emt 0:02:56]} a5 {[%emt 0:02:25]} 33. Kd1 {[%emt 0:01:23]} Kd6 {[%emt 0:01:11]} 34. Kc1 {[%emt 0:00:38]} Rb6 {[%emt 0:01:15]} 35. a4 {[%emt 0:05:35]} Rc6 {[%emt 0:23:37]} 36. Kd2 {[%emt 0:01:22]} Nd7 {[%emt 0:05:48]} 37. Bd3 {[%emt 0:01:16]} Nb6 {[%emt 0:01:15]} 38. Bb5 {[%emt 0:01:03]} Nc4+ {[%emt 0:01:29]} 39. Kd3 {[%emt 0:02:44]} Rc7 {[%emt 0:01:12]} 40. f4 {[%emt 0:00:00]} g6 {[%emt 0:00:00]} 41. g3 {[%emt 0:06:57] Ke5 Ke4+} 1/2-1/2

[Event "IIFL Wealth  4th Mumbai Junior U-13"]
[Site "Mumbai"]
[Date "2019.01.02"]
[Round "4"]
[White "Sri Rashmika M"]
[Black "Zaif, Khandkar"]
[Result "1-0"]
[ECO "D53"]
[WhiteElo "1039"]
[BlackElo "1283"]
[Annotator "NA RC"]
[PlyCount "115"]
[EventDate "2018.12.30"]
[EventType "swiss"]
[EventCountry "IND"]
[SourceTitle "playchess.com"]
[Source "ChessBase"]
[SourceQuality "1"]
[TimeControl "40/5400+30:1800+30"]

1. d4 {[%emt 0:14:20]} d5 {[%emt 0:02:48]} 2. c4 {[%emt 0:00:04]} e6 {[%emt 0:01:24]} 3. Nc3 {[%emt 0:00:01]} Nf6 {[%emt 0:04:51]} 4. Bg5 {[%emt 0:00:02]} Be7 {[%emt 0:02:59]} 5. e3 {[%emt 0:00:05]} h6 {[%emt 0:02:26]} 6. Bh4 {[%emt 0:01:52]} Nc6 {[%emt 0:05:29]} 7. Nf3 {[%emt 0:03:08]} a6 {[%emt 0:04:28]} 8. cxd5 {[%emt 0:02:50]} exd5 {[%emt 0:00:33]} 9. a3 {[%emt 0:06:09]} Bf5 {[%emt 0:05:05]} 10. Bd3 {[%emt 0:05:09]} Bxd3 {[%emt 0:02:39]} 11. Qxd3 {[%emt 0:00:11]} Qd6 {[%emt 0:12:40]} 12. Bg3 {[%emt 0:09:55]} Qd7 {[%emt 0:04:20]} 13. Rc1 {[%emt 0:03:28]} Nh5 {[%emt 0:05:47]} 14. Qc2 {[%emt 0:06:45]} Nxg3 {[%emt 0:16:52]} 15. hxg3 {[%emt 0:00:34]} Bf6 {[%emt 0:01:32]} 16. Na4 {[%emt 0:11:00]} Rc8 {[%emt 0:05:11]} 17. Nc5 {[%emt 0:06:16]} Qg4 {[%emt 0:05:48]} 18. Nxb7 {[%emt 0:04:29]} Ne7 {[%emt 0:02:11]} 19. Qa4+ {[%emt 0:03:40]} Kf8 {[%emt 0:02:05]} 20. Qxa6 {[%emt 0:04:24]} Kg8 {[%emt 0:01:37]} 21. Qe2 {[%emt 0:03:20]} Qg6 {[%emt 0:01:36]} 22. Qc2 {[%emt 0:03:01]} Qg4 {[%emt 0:01:03]} 23. Nc5 {[%emt 0:01:13]} Rd8 {[%emt 0:01:27]} 24. Nd3 {[%emt 0:01:08]} c6 {[%emt 0:01:24]} 25. Nde5 {[%emt 0:00:53]} Bxe5 {[%emt 0:01:17]} 26. Nxe5 {[%emt 0:00:02]} Qe4 {[%emt 0:00:11]} 27. Qxe4 {[%emt 0:00:10]} dxe4 {[%emt 0:00:04]} 28. Nxc6 {[%emt 0:00:47]} Nxc6 {[%emt 0:00:49]} 29. Rxc6 {[%emt 0:00:02]} Rb8 {[%emt 0:00:20]} 30. b4 {[%emt 0:00:34]} Ra8 {[%emt 0:00:14]} 31. Rc3 {[%emt 0:00:11]} Kh7 {[%emt 0:00:12]} 32. Kd2 {[%emt 0:00:25]} Ra4 {[%emt 0:00:52]} 33. Ra1 {[%emt 0:01:57]} Kg6 {[%emt 0:00:28]} 34. Rc5 {[%emt 0:00:15]} Rha8 {[%emt 0:00:23]} 35. Rc3 {[%emt 0:01:08]} Kg5 {[%emt 0:00:32]} 36. Kc2 {[%emt 0:01:01]} Kg4 {[%emt 0:00:29]} 37. Kb3 {[%emt 0:02:07]} g5 {[%emt 0:01:30]} 38. Rc6 {[%emt 0:01:35]} h5 {[%emt 0:00:13]} 39. Rf6 {[%emt 0:00:36]} R8a7 {[%emt 0:00:38]} 40. Ra2 {[%emt 0:00:00]} h4 {[%emt 0:00:00]} 41. gxh4 {[%emt 0:01:39]} Kxh4 {[%emt 0:00:43]} 42. Rh6+ {[%emt 0:00:53]} Kg4 {[%emt 0:00:38]} 43. Rh7 f5 {[%emt 0:00:50]} 44. Rxa7 {[%emt 0:01:44]} Rxa7 {[%emt 0:00:25]} 45. a4 {[%emt 0:00:17]} f4 {[%emt 0:00:01]} 46. b5 {[%emt 0:02:01]} Kh4 {[%emt 0:01:05]} 47. a5 {[%emt 0:01:21]} g4 {[%emt 0:00:36]} 48. b6 {[%emt 0:03:28]} Ra8 {[%emt 0:00:19]} 49. Kb4 {[%emt 0:04:13]} g3 {[%emt 0:01:54]} 50. fxg3+ {[%emt 0:03:28]} Kxg3 {[%emt 0:00:19]} 51. exf4 {[%emt 0:00:24]} Kxf4 {[%emt 0:00:58]} 52. Re2 {[%emt 0:01:10]} e3 {[%emt 0:00:23]} 53. b7 {[%emt 0:02:11]} Rd8 {[%emt 0:00:57]} 54. Kc5 {[%emt 0:01:50]} Ke4 {[%emt 0:01:13]} 55. a6 {[%emt 0:00:33]} Rxd4 {[%emt 0:01:30]} 56. b8=Q {[%emt 0:00:24]} Rd5+ {[%emt 0:01:25]} 57. Kc6 {[%emt 0:00:31]} Re5 {[%emt 0:00:46]} 58. Qxe5+ {[%emt 0:00:36] Kd5+} 1-0

[Event "IIFL Wealth  4th Mumbai Junior U-13"]
[Site "Mumbai"]
[Date "2019.01.02"]
[Round "4"]
[White "Borate Tanvi"]
[Black "Shah Viha"]
[Result "1/2-1/2"]
[ECO "B85"]
[WhiteElo "1035"]
[BlackElo "1212"]
[Annotator "NA"]
[PlyCount "69"]
[EventDate "2018.12.30"]
[EventType "swiss"]
[EventCountry "IND"]
[SourceTitle "playchess.com"]
[Source "ChessBase"]
[SourceQuality "1"]
[TimeControl "40/5400+30:1800+30"]

1. e4 {[%emt 0:00:00]} c5 {[%emt 0:00:00]} 2. Nf3 {[%emt 0:00:00]} d6 {[%emt 0:00:05]} 3. d4 {[%emt 0:00:00]} cxd4 {[%emt 0:00:21]} 4. Nxd4 {[%emt 0:00:20]} Nf6 {[%emt 0:00:07]} 5. Nc3 {[%emt 0:00:13]} a6 {[%emt 0:00:11]} 6. Be2 {[%emt 0:00:22]} Nbd7 {[%emt 0:00:40]} 7. O-O {[%emt 0:01:05]} e6 {[%emt 0:00:44]} 8. Be3 {[%emt 0:01:20]} Qc7 {[%emt 0:00:29]} 9. f4 {[%emt 0:06:09]} b5 {[%emt 0:03:14]} 10. a3 {[%emt 0:04:53]} Bb7 {[%emt 0:00:20]} 11. Bd3 {[%emt 0:10:16]} Nc5 {[%emt 0:01:33]} 12. Qf3 {[%emt 0:03:18]} Nxd3 {[%emt 0:04:30]} 13. cxd3 {[%emt 0:00:12]} Rc8 {[%emt 0:00:45]} 14. Rac1 {[%emt 0:01:17]} Qd8 {[%emt 0:01:30]} 15. Qg3 {[%emt 0:03:08]} Nh5 {[%emt 0:08:01]} 16. Qg4 {[%emt 0:05:23]} Nf6 {[%emt 0:05:54]} 17. Qg3 {[%emt 0:00:38]} h5 {[%emt 0:03:09]} 18. h3 {[%emt 0:08:35]} h4 {[%emt 0:01:29]} 19. Qf3 {[%emt 0:03:05]} Nh5 {[%emt 0:03:50]} 20. Nde2 {[%emt 0:00:28]} Be7 {[%emt 0:06:58]} 21. d4 {[%emt 0:03:55]} Nf6 {[%emt 0:02:35]} 22. f5 {[%emt 0:05:53]} exf5 {[%emt 0:01:37]} 23. Qxf5 {[%emt 0:00:53]} Qd7 {[%emt 0:02:35]} 24. Qf3 {[%emt 0:01:22]} Bd8 {[%emt 0:07:54]} 25. d5 {[%emt 0:02:02]} Rc4 {[%emt 0:03:35]} 26. Nd4 {[%emt 0:07:43]} Nh5 {[%emt 0:01:23]} 27. Nde2 {[%emt 0:02:23]} Nf6 {[%emt 0:00:09]} 28. Nd4 {[%emt 0:00:07]} Nh5 {[%emt 0:00:09]} 29. Nde2 {[%emt 0:00:08]} Nf6 {[%emt 0:00:10]} 30. Nd4 {[%emt 0:00:06]} Nh5 {[%emt 0:00:06]} 31. Nde2 {[%emt 0:00:02]} Nf6 {[%emt 0:00:07]} 32. Nd4 {[%emt 0:00:17]} Nh5 {[%emt 0:00:10]} 33. Nde2 {[%emt 0:00:17]} Nf6 {[%emt 0:00:05]} 34. Nd4 {[%emt 0:00:02]} Nh5 {[%emt 0:00:11]} 35. Nde2 {[%emt 0:00:03]} 1/2-1/2

[Event "IIFL Wealth  4th Mumbai Junior U-13"]
[Site "Mumbai"]
[Date "2019.01.02"]
[Round "4"]
[White "Jain Hitansh"]
[Black "Sathi Akshaj Mayank"]
[Result "*"]
[ECO "A10"]
[WhiteElo "1008"]
[BlackElo "1194"]
[Annotator "NA"]
[PlyCount "28"]
[EventDate "2018.12.30"]
[EventType "swiss"]
[EventCountry "IND"]
[SourceTitle "playchess.com"]
[Source "ChessBase"]
[SourceQuality "1"]
[TimeControl "40/5400+30:1800+30"]

1. c4 d5 2. cxd5 Qxd5 3. Nc3 Qd8 4. Nf3 Nf6 5. d4 Bg4 6. Bf4 e6 7. e3 a6 8. Bc4 Be7 9. O-O O-O 10. h3 Bh5 11. Rc1 Nc6 12. Ne2 Bxf3 13. gxf3 Nd5 14. Bg3 Nf6 *